[Event "Titled Tuesday Blitz February 22 Late 2022"]
[White "Tanenbaum, Zachary"]
[Black "Chyngyz, Sultai"]
[WhiteFideId "2060850"]
[BlackFideId "13803158"]
[WhiteElo "2168"]
[BlackElo "1339"]
[Result "0-1"]
[Round "02"]
[TimeControl "180+1"]
[Date "2022.02.23"]
[WhiteClock "0:00:03"]
[BlackClock "0:00:47"]

1. e4 {[%clk 0:03:00]}  c5 {[%clk 0:02:50]} 2. Nf3 {[%clk 0:03:00]}  d6 {[%clk 0:02:49]} 3. d4 {[%clk 0:03:00]}  cxd4 {[%clk 0:02:50]} 4. Nxd4 {[%clk 0:03:01]}  Nf6 {[%clk 0:02:50]} 5. Nc3 {[%clk 0:03:01]}  a6 {[%clk 0:02:50]} 6. Be3 {[%clk 0:03:01]}  e5 {[%clk 0:02:47]} 7. Nb3 {[%clk 0:03:01]}  Be6 {[%clk 0:02:47]} 8. h3 {[%clk 0:03:02]}  Be7 {[%clk 0:02:48]} 9. f4 {[%clk 0:03:01]}  exf4 {[%clk 0:02:48]} 10. Bxf4 {[%clk 0:03:02]}  O-O {[%clk 0:02:48]} 11. Qe2 {[%clk 0:03:02]}  Nc6 {[%clk 0:02:41]} 12. O-O-O {[%clk 0:03:02]}  Qc7 {[%clk 0:02:38]} 13. g4 {[%clk 0:02:58]}  b5 {[%clk 0:02:38]} 14. g5 {[%clk 0:02:52]}  Nd7 {[%clk 0:02:37]} 15. Kb1 {[%clk 0:02:52]}  Bc4 {[%clk 0:02:35]} 16. Qg2 {[%clk 0:02:49]}  Nde5 {[%clk 0:02:33]} 17. Bxc4 {[%clk 0:02:47]}  bxc4 {[%clk 0:02:30]} 18. Nd5 {[%clk 0:02:48]}  Qb7 {[%clk 0:02:25]} 19. Nd4 {[%clk 0:02:35]}  Nxd4 {[%clk 0:02:21]} 20. Rxd4 {[%clk 0:02:36]}  Rab8 {[%clk 0:02:18]} 21. b3 {[%clk 0:02:27]}  cxb3 {[%clk 0:02:15]} 22. axb3 {[%clk 0:02:23]}  a5 {[%clk 0:02:13]} 23. Nf6+ {[%clk 0:01:44]}  Kh8 {[%clk 0:02:05]} 24. Bxe5 {[%clk 0:01:20]}  dxe5 {[%clk 0:01:59]} 25. Rd7 {[%clk 0:01:21]}  Qb4 {[%clk 0:01:56]} 26. Nd5 {[%clk 0:01:20]}  Qa3 {[%clk 0:01:53]} 27. Rxe7 {[%clk 0:01:16]}  a4 {[%clk 0:01:49]} 28. Rf1 {[%clk 0:00:43]}  axb3 {[%clk 0:01:47]} 29. c3 {[%clk 0:00:43]}  b2 {[%clk 0:01:43]} 30. Nb4 {[%clk 0:00:39]}  Rxb4 {[%clk 0:01:33]} 31. cxb4 {[%clk 0:00:37]}  Qa1+ {[%clk 0:01:22]} 32. Kc2 {[%clk 0:00:36]}  Rc8+ {[%clk 0:01:22]} 33. Kb3 {[%clk 0:00:14]}  b1=Q+ {[%clk 0:01:06]} 34. Rxb1 {[%clk 0:00:15]}  Qxb1+ {[%clk 0:01:07]} 35. Ka4 {[%clk 0:00:14]}  Ra8+ {[%clk 0:01:00]} 36. Kb5 {[%clk 0:00:13]}  Qd3+ {[%clk 0:00:59]} 37. Kc5 {[%clk 0:00:05]}  Qd4+ {[%clk 0:00:57]} 38. Kc6 {[%clk 0:00:03]}  Ra6+ {[%clk 0:00:52]} 39. Kc7 {[%clk 0:00:02]}  Qb6+ {[%clk 0:00:50]} 40. Kd7 {[%clk 0:00:02]}  Ra7+ {[%clk 0:00:50]} 41. Ke8 {[%clk 0:00:02]}  Qb8+ {[%clk 0:00:50]} 42. Kxf7 {[%clk 0:00:03]}  Qg8# {[%clk 0:00:47]} 0-1


[Site "https://www.chess.com"]

[Event "Titled Tuesday Blitz February 22 Late 2022"]
[White "Thomas, Anysia"]
[Black "Mahajan, Rushaan"]
[WhiteFideId "670472"]
[BlackFideId "30934222"]
[WhiteElo "2002"]
[BlackElo "1897"]
[Result "0-1"]
[Round "02"]
[TimeControl "180+1"]
[Date "2022.02.23"]
[WhiteClock "0:00:05"]
[BlackClock "0:00:13"]

1. d4 {[%clk 0:03:00]}  Nf6 {[%clk 0:02:59]} 2. c4 {[%clk 0:03:00]}  e6 {[%clk 0:02:59]} 3. Nf3 {[%clk 0:03:00]}  d5 {[%clk 0:02:59]} 4. g3 {[%clk 0:02:58]}  Bb4+ {[%clk 0:02:58]} 5. Bd2 {[%clk 0:02:58]}  Bd6 {[%clk 0:02:58]} 6. Bg2 {[%clk 0:02:56]}  O-O {[%clk 0:02:59]} 7. O-O {[%clk 0:02:57]}  Nbd7 {[%clk 0:02:57]} 8. Qc2 {[%clk 0:02:57]}  c6 {[%clk 0:02:49]} 9. b3 {[%clk 0:02:57]}  Ne4 {[%clk 0:02:49]} 10. Nc3 {[%clk 0:02:56]}  f5 {[%clk 0:02:39]} 11. Bc1 {[%clk 0:02:53]}  Qe7 {[%clk 0:02:23]} 12. Bb2 {[%clk 0:02:52]}  g5 {[%clk 0:02:01]} 13. Nd2 {[%clk 0:02:49]}  g4 {[%clk 0:01:53]} 14. f3 {[%clk 0:02:38]}  Nxd2 {[%clk 0:01:43]} 15. Qxd2 {[%clk 0:02:36]}  h5 {[%clk 0:01:42]} 16. e4 {[%clk 0:02:28]}  gxf3 {[%clk 0:01:35]} 17. Bxf3 {[%clk 0:02:27]}  fxe4 {[%clk 0:01:36]} 18. Bxh5 {[%clk 0:02:26]}  Nf6 {[%clk 0:01:34]} 19. Qg5+ {[%clk 0:01:40]}  Qg7 {[%clk 0:01:30]} 20. Bg6 {[%clk 0:01:39]}  Nh7 {[%clk 0:01:19]} 21. Bxh7+ {[%clk 0:01:37]}  Kxh7 {[%clk 0:01:15]} 22. Qh5+ {[%clk 0:01:19]}  Kg8 {[%clk 0:01:10]} 23. Rxf8+ {[%clk 0:01:17]}  Bxf8 {[%clk 0:01:10]} 24. Ne2 {[%clk 0:01:08]}  Bd7 {[%clk 0:01:08]} 25. Nf4 {[%clk 0:01:05]}  Bd6 {[%clk 0:01:06]} 26. Rf1 {[%clk 0:00:59]}  Rf8 {[%clk 0:01:06]} 27. Qh4 {[%clk 0:00:16]}  e3 {[%clk 0:00:51]} 28. Nh5 {[%clk 0:00:13]}  Rxf1+ {[%clk 0:00:48]} 29. Kxf1 {[%clk 0:00:14]}  Qf7+ {[%clk 0:00:49]} 30. Nf6+ {[%clk 0:00:11]}  Kg7 {[%clk 0:00:49]} 31. Qg5+ {[%clk 0:00:11]}  Kf8 {[%clk 0:00:28]} 32. Ke2 {[%clk 0:00:11]}  Bc8 {[%clk 0:00:25]} 33. Kxe3 {[%clk 0:00:10]}  Be7 {[%clk 0:00:25]} 34. Qh6+ {[%clk 0:00:10]}  Qg7 {[%clk 0:00:24]} 35. Qxg7+ {[%clk 0:00:06]}  Kxg7 {[%clk 0:00:25]} 36. Ng4 {[%clk 0:00:06]}  Bg5+ {[%clk 0:00:24]} 37. Ke2 {[%clk 0:00:06]}  b6 {[%clk 0:00:25]} 38. Ne5 {[%clk 0:00:07]}  Bb7 {[%clk 0:00:24]} 39. Bc3 {[%clk 0:00:07]}  Bf6 {[%clk 0:00:23]} 40. cxd5 {[%clk 0:00:07]}  exd5 {[%clk 0:00:22]} 41. Ng4 {[%clk 0:00:07]}  Be7 {[%clk 0:00:18]} 42. Bd2 {[%clk 0:00:07]}  c5 {[%clk 0:00:18]} 43. Be3 {[%clk 0:00:07]}  c4 {[%clk 0:00:18]} 44. Ne5 {[%clk 0:00:06]}  b5 {[%clk 0:00:17]} 45. h4 {[%clk 0:00:06]}  Bf6 {[%clk 0:00:17]} 46. Ng4 {[%clk 0:00:05]}  Be7 {[%clk 0:00:15]} 47. h5 {[%clk 0:00:06]}  Bd6 {[%clk 0:00:15]} 48. h6+ {[%clk 0:00:06]}  Kg6 {[%clk 0:00:13]} 49. Nf2 {[%clk 0:00:05]}  Bxg3 {[%clk 0:00:12]} 50. Nh1 {[%clk 0:00:04]}  Bd6 {[%clk 0:00:12]} 51. Nf2 {[%clk 0:00:04]}  Bf8 {[%clk 0:00:12]} 52. Nh3 {[%clk 0:00:03]}  Bxh6 {[%clk 0:00:11]} 53. Bf2 {[%clk 0:00:02]}  Bc8 {[%clk 0:00:11]} 54. Ng1 {[%clk 0:00:02]}  Bg4+ {[%clk 0:00:11]} 55. Ke1 {[%clk 0:00:02]}  Kf5 {[%clk 0:00:12]} 56. Ne2 {[%clk 0:00:01]}  Bxe2 {[%clk 0:00:12]} 57. Kxe2 {[%clk 0:00:02]}  Ke4 {[%clk 0:00:13]} 58. Bg1 {[%clk 0:00:02]}  Bg7 {[%clk 0:00:12]} 59. Kd1 {[%clk 0:00:02]}  Bxd4 {[%clk 0:00:12]} 60. Bh2 {[%clk 0:00:03]}  Be5 {[%clk 0:00:11]} 61. Kc2 {[%clk 0:00:04]}  Bxh2 {[%clk 0:00:11]} 62. bxc4 {[%clk 0:00:04]}  bxc4 {[%clk 0:00:12]} 63. Kc3 {[%clk 0:00:04]}  Be5+ {[%clk 0:00:12]} 64. Kb4 {[%clk 0:00:05]}  d4 {[%clk 0:00:13]} 0-1


[Site "https://www.chess.com"]

[Event "Titled Tuesday Blitz February 22 Late 2022"]
[White "Urazayev, Arystanbek"]
[Black "Petrovic, Aleksa"]
[WhiteFideId "13709810"]
[BlackFideId "967629"]
[WhiteElo "2321"]
[BlackElo "2139"]
[Result "0-1"]
[Round "02"]
[TimeControl "180+1"]
[Date "2022.02.23"]
[WhiteClock "0:00:19"]
[BlackClock "0:00:05"]

1. e4 {[%clk 0:03:00]}  e5 {[%clk 0:02:58]} 2. Nf3 {[%clk 0:03:01]}  Nc6 {[%clk 0:02:58]} 3. Bb5 {[%clk 0:03:02]}  a6 {[%clk 0:02:58]} 4. Ba4 {[%clk 0:03:02]}  Nf6 {[%clk 0:02:58]} 5. d3 {[%clk 0:03:02]}  d6 {[%clk 0:02:57]} 6. c4 {[%clk 0:03:02]}  g6 {[%clk 0:02:56]} 7. Nc3 {[%clk 0:03:03]}  Bg7 {[%clk 0:02:56]} 8. Nd5 {[%clk 0:03:04]}  Nd7 {[%clk 0:02:45]} 9. Bg5 {[%clk 0:03:03]}  f6 {[%clk 0:02:45]} 10. Be3 {[%clk 0:03:04]}  Ne7 {[%clk 0:02:31]} 11. h4 {[%clk 0:03:02]}  c6 {[%clk 0:02:26]} 12. Nxe7 {[%clk 0:02:55]}  Qxe7 {[%clk 0:02:27]} 13. h5 {[%clk 0:02:56]}  Nc5 {[%clk 0:02:13]} 14. Bc2 {[%clk 0:02:55]}  Bg4 {[%clk 0:02:10]} 15. h6 {[%clk 0:02:50]}  Bf8 {[%clk 0:02:09]} 16. b4 {[%clk 0:02:49]}  Ne6 {[%clk 0:02:07]} 17. a3 {[%clk 0:02:48]}  f5 {[%clk 0:01:56]} 18. Qb1 {[%clk 0:02:28]}  f4 {[%clk 0:01:52]} 19. Nh2 {[%clk 0:02:13]}  Bh5 {[%clk 0:01:38]} 20. Bb6 {[%clk 0:02:10]}  Qg5 {[%clk 0:01:34]} 21. Kf1 {[%clk 0:01:59]}  Qxh6 {[%clk 0:01:26]} 22. b5 {[%clk 0:01:55]}  axb5 {[%clk 0:00:54]} 23. cxb5 {[%clk 0:01:54]}  c5 {[%clk 0:00:54]} 24. a4 {[%clk 0:01:54]}  Nd4 {[%clk 0:00:52]} 25. a5 {[%clk 0:01:50]}  Be7 {[%clk 0:00:39]} 26. Bb3 {[%clk 0:01:50]}  Be2+ {[%clk 0:00:35]} 27. Kg1 {[%clk 0:01:51]}  Qg5 {[%clk 0:00:34]} 28. Bd5 {[%clk 0:01:43]}  h5 {[%clk 0:00:26]} 29. Qb2 {[%clk 0:00:58]}  h4 {[%clk 0:00:22]} 30. Qd2 {[%clk 0:00:30]}  h3 {[%clk 0:00:13]} 31. g3 {[%clk 0:00:29]}  Qh6 {[%clk 0:00:13]} 32. a6 {[%clk 0:00:21]}  Rf8 {[%clk 0:00:11]} 33. g4 {[%clk 0:00:21]}  Qh4 {[%clk 0:00:08]} 34. Qe1 {[%clk 0:00:20]}  Qxg4+ {[%clk 0:00:04]} 35. Nxg4 {[%clk 0:00:19]}  Nf3# {[%clk 0:00:05]} 0-1


[Site "https://www.chess.com"]

[Event "Titled Tuesday Blitz February 22 Late 2022"]
[White "Vargas Pereda, Jesus Manue"]
[Black "Chernomordik, Pavel"]
[WhiteFideId "5115710"]
[BlackFideId "2804530"]
[WhiteElo "1747"]
[BlackElo "2249"]
[Result "0-1"]
[Round "02"]
[TimeControl "180+1"]
[Date "2022.02.23"]
[WhiteClock "0:00:13"]
[BlackClock "0:02:10"]

1. d4 {[%clk 0:03:00]}  g6 {[%clk 0:03:00]} 2. e4 {[%clk 0:02:57]}  Bg7 {[%clk 0:03:00]} 3. Nc3 {[%clk 0:02:57]}  d6 {[%clk 0:03:00]} 4. Be3 {[%clk 0:02:58]}  a6 {[%clk 0:02:59]} 5. Qd2 {[%clk 0:02:58]}  b5 {[%clk 0:02:59]} 6. f3 {[%clk 0:02:41]}  Bb7 {[%clk 0:02:59]} 7. h4 {[%clk 0:02:30]}  h6 {[%clk 0:02:58]} 8. g4 {[%clk 0:02:29]}  Nd7 {[%clk 0:02:57]} 9. Bd3 {[%clk 0:02:27]}  c5 {[%clk 0:02:55]} 10. Nh3 {[%clk 0:02:19]}  cxd4 {[%clk 0:02:54]} 11. Bxd4 {[%clk 0:02:02]}  Bxd4 {[%clk 0:02:52]} 12. Nf4 {[%clk 0:02:00]}  Ngf6 {[%clk 0:02:43]} 13. O-O-O {[%clk 0:01:52]}  Qb6 {[%clk 0:02:42]} 14. Kb1 {[%clk 0:01:51]}  Be3 {[%clk 0:02:40]} 15. Qh2 {[%clk 0:01:50]}  Ne5 {[%clk 0:02:32]} 16. Rhf1 {[%clk 0:01:29]}  O-O-O {[%clk 0:02:26]} 17. Ng2 {[%clk 0:01:02]}  Bd4 {[%clk 0:02:24]} 18. f4 {[%clk 0:00:34]}  Nexg4 {[%clk 0:02:21]} 19. Qh3 {[%clk 0:00:34]}  Bxc3 {[%clk 0:02:20]} 20. bxc3 {[%clk 0:00:32]}  Kb8 {[%clk 0:02:19]} 21. e5 {[%clk 0:00:28]}  dxe5 {[%clk 0:02:16]} 22. fxe5 {[%clk 0:00:27]}  Nxe5 {[%clk 0:02:14]} 23. Qg3 {[%clk 0:00:25]}  Qc7 {[%clk 0:02:13]} 24. Qe3 {[%clk 0:00:13]}  Bxg2 {[%clk 0:02:10]} 0-1


[Site "https://www.chess.com"]

[Event "Titled Tuesday Blitz February 22 Late 2022"]
[White "Vidit, Santosh Gujrathi"]
[Black "Garriga Cazorla, Pere"]
[WhiteFideId "5029465"]
[BlackFideId "32011601"]
[WhiteElo "2654"]
[BlackElo "2458"]
[Result "1-0"]
[Round "02"]
[TimeControl "180+1"]
[Date "2022.02.22"]
[WhiteClock "0:00:38"]
[BlackClock "0:00:39"]

1. d4 {[%clk 0:03:00]}  Nf6 {[%clk 0:02:59]} 2. c4 {[%clk 0:03:01]}  e6 {[%clk 0:02:59]} 3. Nf3 {[%clk 0:03:01]}  d5 {[%clk 0:02:59]} 4. Nc3 {[%clk 0:03:01]}  dxc4 {[%clk 0:02:56]} 5. e4 {[%clk 0:02:58]}  b5 {[%clk 0:02:56]} 6. e5 {[%clk 0:02:58]}  Nd5 {[%clk 0:02:56]} 7. Nxb5 {[%clk 0:02:58]}  Nb6 {[%clk 0:02:56]} 8. Be2 {[%clk 0:02:49]}  Nc6 {[%clk 0:02:55]} 9. Be3 {[%clk 0:02:48]}  Be7 {[%clk 0:02:54]} 10. a3 {[%clk 0:02:43]}  O-O {[%clk 0:02:46]} 11. Qc2 {[%clk 0:02:43]}  Rb8 {[%clk 0:02:40]} 12. Nc3 {[%clk 0:02:36]}  Na5 {[%clk 0:02:37]} 13. Rd1 {[%clk 0:02:30]}  Bb7 {[%clk 0:02:37]} 14. h4 {[%clk 0:02:26]}  Qc8 {[%clk 0:02:32]} 15. Ng5 {[%clk 0:02:22]}  g6 {[%clk 0:02:14]} 16. h5 {[%clk 0:02:06]}  c5 {[%clk 0:01:58]} 17. Nxh7 {[%clk 0:01:47]}  cxd4 {[%clk 0:01:57]} 18. Rxd4 {[%clk 0:01:47]}  Nb3 {[%clk 0:01:49]} 19. Rg4 {[%clk 0:01:21]}  Nd5 {[%clk 0:01:18]} 20. hxg6 {[%clk 0:01:09]}  f5 {[%clk 0:01:16]} 21. exf6 {[%clk 0:01:04]}  Nxe3 {[%clk 0:01:11]} 22. fxe3 {[%clk 0:01:01]}  Qc5 {[%clk 0:00:46]} 23. Nxf8 {[%clk 0:00:51]}  Qxe3 {[%clk 0:00:39]} 24. f7+ {[%clk 0:00:39]}  Kg7 {[%clk 0:00:38]} 25. Rh7+ {[%clk 0:00:38]}  Kf6 {[%clk 0:00:39]} 26. Nd7# {[%clk 0:00:38]} 1-0


[Site "https://www.chess.com"]

[Event "Titled Tuesday Blitz February 22 Late 2022"]
[White "Wachinger, Guenther"]
[Black "Paravyan, David"]
[WhiteFideId "4604261"]
[BlackFideId "4194985"]
[WhiteElo "2212"]
[BlackElo "2569"]
[Result "0-1"]
[Round "02"]
[TimeControl "180+1"]
[Date "2022.02.23"]
[WhiteClock "0:00:03"]
[BlackClock "0:00:08"]

1. e4 {[%clk 0:03:00]}  e5 {[%clk 0:02:59]} 2. Nf3 {[%clk 0:03:00]}  Nf6 {[%clk 0:02:59]} 3. Nc3 {[%clk 0:03:00]}  Nc6 {[%clk 0:02:59]} 4. a3 {[%clk 0:03:01]}  d5 {[%clk 0:02:59]} 5. Bb5 {[%clk 0:03:01]}  Nxe4 {[%clk 0:02:58]} 6. Qe2 {[%clk 0:03:01]}  Bd6 {[%clk 0:02:53]} 7. Nxd5 {[%clk 0:02:40]}  Nf6 {[%clk 0:02:53]} 8. Nxf6+ {[%clk 0:02:38]}  Qxf6 {[%clk 0:02:53]} 9. d4 {[%clk 0:02:38]}  Bd7 {[%clk 0:02:07]} 10. Bxc6 {[%clk 0:02:21]}  Bxc6 {[%clk 0:02:06]} 11. dxe5 {[%clk 0:02:21]}  Bxf3 {[%clk 0:02:06]} 12. exf6+ {[%clk 0:02:18]}  Bxe2 {[%clk 0:02:07]} 13. fxg7 {[%clk 0:02:15]}  Rg8 {[%clk 0:02:07]} 14. Kxe2 {[%clk 0:02:15]}  Rxg7 {[%clk 0:02:08]} 15. g3 {[%clk 0:02:16]}  O-O-O {[%clk 0:02:08]} 16. f4 {[%clk 0:02:14]}  Re8+ {[%clk 0:02:07]} 17. Kf3 {[%clk 0:02:14]}  Rg6 {[%clk 0:02:08]} 18. Bd2 {[%clk 0:02:12]}  Kd7 {[%clk 0:01:57]} 19. Rae1 {[%clk 0:02:11]}  Rxe1 {[%clk 0:01:57]} 20. Rxe1 {[%clk 0:02:11]}  h5 {[%clk 0:01:52]} 21. Bc3 {[%clk 0:02:10]}  b5 {[%clk 0:01:44]} 22. Be5 {[%clk 0:02:03]}  Bf8 {[%clk 0:01:42]} 23. Rd1+ {[%clk 0:02:02]}  Kc8 {[%clk 0:01:42]} 24. Bc3 {[%clk 0:01:51]}  a6 {[%clk 0:01:26]} 25. Rd5 {[%clk 0:01:51]}  Rc6 {[%clk 0:01:26]} 26. Rxh5 {[%clk 0:01:13]}  Bxa3 {[%clk 0:01:25]} 27. h4 {[%clk 0:01:09]}  Bd6 {[%clk 0:00:53]} 28. Rh8+ {[%clk 0:01:05]}  Kb7 {[%clk 0:00:53]} 29. h5 {[%clk 0:01:06]}  b4 {[%clk 0:00:53]} 30. Bd4 {[%clk 0:01:03]}  Rxc2 {[%clk 0:00:54]} 31. h6 {[%clk 0:01:03]}  Rh2 {[%clk 0:00:44]} 32. h7 {[%clk 0:00:59]}  a5 {[%clk 0:00:19]} 33. Bf6 {[%clk 0:00:57]}  Bc5 {[%clk 0:00:18]} 34. Ke4 {[%clk 0:00:51]}  Rh6 {[%clk 0:00:07]} 35. Bg5 {[%clk 0:00:44]}  Rh5 {[%clk 0:00:05]} 36. g4 {[%clk 0:00:28]}  Rh3 {[%clk 0:00:05]} 37. Bf6 {[%clk 0:00:26]}  a4 {[%clk 0:00:05]} 38. g5 {[%clk 0:00:15]}  a3 {[%clk 0:00:05]} 39. bxa3 {[%clk 0:00:14]}  bxa3 {[%clk 0:00:06]} 40. f5 {[%clk 0:00:07]}  a2 {[%clk 0:00:07]} 41. g6 {[%clk 0:00:06]}  Rh4+ {[%clk 0:00:07]} 42. Kd5 {[%clk 0:00:03]}  Bd4 {[%clk 0:00:08]} 0-1


[Site "https://www.chess.com"]

[Event "Titled Tuesday Blitz February 22 Late 2022"]
[White "Weetik, Vjacheslav"]
[Black "Fedoseev, Vladimir"]
[WhiteFideId "4153472"]
[BlackFideId "24130737"]
[WhiteElo "2469"]
[BlackElo "2726"]
[Result "0-1"]
[Round "02"]
[TimeControl "180+1"]
[Date "2022.02.22"]
[WhiteClock "0:00:04"]
[BlackClock "0:00:11"]

1. d4 {[%clk 0:02:59]}  d5 {[%clk 0:02:59]} 2. Bf4 {[%clk 0:02:58]}  Nc6 {[%clk 0:02:58]} 3. Nf3 {[%clk 0:02:57]}  Bg4 {[%clk 0:02:57]} 4. Nbd2 {[%clk 0:02:55]}  f6 {[%clk 0:02:55]} 5. c4 {[%clk 0:02:38]}  dxc4 {[%clk 0:02:45]} 6. Qa4 {[%clk 0:02:31]}  e5 {[%clk 0:02:13]} 7. dxe5 {[%clk 0:02:26]}  Bb4 {[%clk 0:02:12]} 8. O-O-O {[%clk 0:02:23]}  Qe7 {[%clk 0:01:56]} 9. Nxc4 {[%clk 0:01:29]}  Qe6 {[%clk 0:01:20]} 10. e3 {[%clk 0:01:19]}  Ne7 {[%clk 0:01:11]} 11. Be2 {[%clk 0:00:53]}  O-O {[%clk 0:01:05]} 12. exf6 {[%clk 0:00:51]}  Rxf6 {[%clk 0:01:05]} 13. Qc2 {[%clk 0:00:44]}  Bf5 {[%clk 0:00:57]} 14. Bd3 {[%clk 0:00:42]}  Bxd3 {[%clk 0:00:54]} 15. Rxd3 {[%clk 0:00:42]}  b5 {[%clk 0:00:48]} 16. Nce5 {[%clk 0:00:37]}  Qxa2 {[%clk 0:00:48]} 17. Qb3+ {[%clk 0:00:28]}  Qxb3 {[%clk 0:00:47]} 18. Rxb3 {[%clk 0:00:29]}  a5 {[%clk 0:00:44]} 19. Rd1 {[%clk 0:00:29]}  Nxe5 {[%clk 0:00:35]} 20. Bxe5 {[%clk 0:00:26]}  Rg6 {[%clk 0:00:31]} 21. Rd7 {[%clk 0:00:19]}  Re8 {[%clk 0:00:17]} 22. Rbd3 {[%clk 0:00:15]}  Rxg2 {[%clk 0:00:16]} 23. Bg3 {[%clk 0:00:15]}  Nf5 {[%clk 0:00:16]} 24. Rxc7 {[%clk 0:00:08]}  Nxg3 {[%clk 0:00:15]} 25. fxg3 {[%clk 0:00:06]}  Rf2 {[%clk 0:00:13]} 26. Nd4 {[%clk 0:00:05]}  Rxe3 {[%clk 0:00:11]} 27. Kb1 {[%clk 0:00:04]}  Rxd3 {[%clk 0:00:11]} 0-1


[Site "https://www.chess.com"]

[Event "Titled Tuesday Blitz February 22 Late 2022"]
[White "Willathgamuwa, Kevin"]
[Black "Noboa Silva, Kevin"]
[WhiteFideId "3214168"]
[BlackFideId "3618471"]
[WhiteElo "1943"]
[BlackElo "2161"]
[Result "1-0"]
[Round "02"]
[TimeControl "180+1"]
[Date "2022.02.23"]
[WhiteClock "0:00:22"]
[BlackClock "0:00:50"]

1. e4 {[%clk 0:03:00]}  e6 {[%clk 0:02:59]} 2. Nc3 {[%clk 0:02:59]}  d5 {[%clk 0:02:59]} 3. Nf3 {[%clk 0:03:00]}  d4 {[%clk 0:02:58]} 4. Ne2 {[%clk 0:03:00]}  c5 {[%clk 0:02:55]} 5. c3 {[%clk 0:03:00]}  Nc6 {[%clk 0:02:55]} 6. cxd4 {[%clk 0:02:49]}  cxd4 {[%clk 0:02:56]} 7. d3 {[%clk 0:02:50]}  e5 {[%clk 0:02:55]} 8. g3 {[%clk 0:02:50]}  Bd7 {[%clk 0:02:55]} 9. Bg2 {[%clk 0:02:51]}  Nf6 {[%clk 0:02:56]} 10. O-O {[%clk 0:02:51]}  Be7 {[%clk 0:02:56]} 11. a3 {[%clk 0:02:45]}  O-O {[%clk 0:02:56]} 12. b4 {[%clk 0:02:46]}  Bd6 {[%clk 0:02:55]} 13. Bb2 {[%clk 0:02:45]}  a6 {[%clk 0:02:54]} 14. Nd2 {[%clk 0:02:45]}  b5 {[%clk 0:02:53]} 15. f4 {[%clk 0:02:45]}  Bg4 {[%clk 0:02:48]} 16. Bf3 {[%clk 0:02:43]}  Bxf3 {[%clk 0:02:45]} 17. Nxf3 {[%clk 0:02:44]}  Re8 {[%clk 0:02:44]} 18. Rc1 {[%clk 0:02:31]}  Rc8 {[%clk 0:02:44]} 19. Qb3 {[%clk 0:02:28]}  Ng4 {[%clk 0:02:43]} 20. fxe5 {[%clk 0:02:20]}  Ncxe5 {[%clk 0:02:42]} 21. Nxe5 {[%clk 0:02:14]}  Nxe5 {[%clk 0:02:40]} 22. Rxc8 {[%clk 0:02:07]}  Qxc8 {[%clk 0:02:40]} 23. Bxd4 {[%clk 0:02:07]}  Qd7 {[%clk 0:02:26]} 24. Qd5 {[%clk 0:01:58]}  Qe7 {[%clk 0:02:15]} 25. Nf4 {[%clk 0:01:53]}  Rd8 {[%clk 0:01:59]} 26. Qb3 {[%clk 0:01:44]}  h6 {[%clk 0:01:53]} 27. Nd5 {[%clk 0:01:40]}  Qg5 {[%clk 0:01:53]} 28. Qc2 {[%clk 0:01:07]}  Bb8 {[%clk 0:01:44]} 29. Qf2 {[%clk 0:01:00]}  f6 {[%clk 0:01:38]} 30. Bxe5 {[%clk 0:00:47]}  Bxe5 {[%clk 0:01:35]} 31. d4 {[%clk 0:00:40]}  Bb8 {[%clk 0:01:33]} 32. Qf5 {[%clk 0:00:26]}  Qd2 {[%clk 0:01:15]} 33. Ne7+ {[%clk 0:00:20]}  Kf7 {[%clk 0:01:12]} 34. Nc6 {[%clk 0:00:13]}  Rf8 {[%clk 0:01:03]} 35. Qd5+ {[%clk 0:00:12]}  Kg6 {[%clk 0:00:56]} 36. Qf5+ {[%clk 0:00:12]}  Kf7 {[%clk 0:00:56]} 37. Qd5+ {[%clk 0:00:12]}  Kg6 {[%clk 0:00:56]} 38. Ne7+ {[%clk 0:00:12]}  Kh7 {[%clk 0:00:54]} 39. Qf5+ {[%clk 0:00:12]}  Kh8 {[%clk 0:00:54]} 40. Ng6+ {[%clk 0:00:13]}  Kg8 {[%clk 0:00:54]} 41. Qe6+ {[%clk 0:00:12]}  Rf7 {[%clk 0:00:53]} 42. Qe8+ {[%clk 0:00:12]}  Kh7 {[%clk 0:00:53]} 43. Qxf7 {[%clk 0:00:12]}  Qxd4+ {[%clk 0:00:53]} 44. Kg2 {[%clk 0:00:10]}  Qxe4+ {[%clk 0:00:53]} 45. Kh3 {[%clk 0:00:10]}  Qxg6 {[%clk 0:00:49]} 46. Qxg6+ {[%clk 0:00:10]}  Kxg6 {[%clk 0:00:50]} 47. Rc1 {[%clk 0:00:11]}  Be5 {[%clk 0:00:44]} 48. Rc6 {[%clk 0:00:10]}  Bb2 {[%clk 0:00:44]} 49. Rxa6 {[%clk 0:00:11]}  Kf5 {[%clk 0:00:44]} 50. Ra5 {[%clk 0:00:11]}  Kg6 {[%clk 0:00:44]} 51. Rxb5 {[%clk 0:00:12]}  Bxa3 {[%clk 0:00:44]} 52. Rb7 {[%clk 0:00:13]}  h5 {[%clk 0:00:43]} 53. b5 {[%clk 0:00:13]}  Kf5 {[%clk 0:00:43]} 54. Rxg7 {[%clk 0:00:13]}  Bc5 {[%clk 0:00:44]} 55. Rh7 {[%clk 0:00:13]}  Kg6 {[%clk 0:00:44]} 56. Rd7 {[%clk 0:00:13]}  Kf5 {[%clk 0:00:42]} 57. Rd5+ {[%clk 0:00:13]}  Ke4 {[%clk 0:00:42]} 58. Rxc5 {[%clk 0:00:14]}  Kd4 {[%clk 0:00:42]} 59. Rxh5 {[%clk 0:00:14]}  Ke4 {[%clk 0:00:42]} 60. Rh6 {[%clk 0:00:15]}  Kf3 {[%clk 0:00:43]} 61. Rxf6+ {[%clk 0:00:15]}  Ke2 {[%clk 0:00:44]} 62. b6 {[%clk 0:00:16]}  Ke1 {[%clk 0:00:45]} 63. b7 {[%clk 0:00:17]}  Ke2 {[%clk 0:00:46]} 64. b8=Q {[%clk 0:00:18]}  Kd2 {[%clk 0:00:47]} 65. Qe5 {[%clk 0:00:18]}  Kd3 {[%clk 0:00:48]} 66. Rd6+ {[%clk 0:00:19]}  Kc4 {[%clk 0:00:49]} 67. Qe7 {[%clk 0:00:20]}  Kb3 {[%clk 0:00:49]} 68. Qc7 {[%clk 0:00:20]}  Ka4 {[%clk 0:00:50]} 69. Rb6 {[%clk 0:00:21]}  Ka5 {[%clk 0:00:50]} 70. Qa7# {[%clk 0:00:22]} 1-0


[Site "https://www.chess.com"]

[Event "Titled Tuesday Blitz February 22 Late 2022"]
[White "Zakhartsov, Vladimir"]
[Black "Guz, Ari"]
[WhiteFideId "4145097"]
[BlackFideId "2825759"]
[WhiteElo "2826"]
[BlackElo "2557"]
[Result "1-0"]
[Round "02"]
[TimeControl "180+1"]
[Date "2022.02.23"]
[WhiteClock "0:00:51"]
[BlackClock "0:00:50"]

1. e4 {[%clk 0:03:00]}  c5 {[%clk 0:02:57]} 2. Nf3 {[%clk 0:03:00]}  e6 {[%clk 0:02:58]} 3. g3 {[%clk 0:02:59]}  g6 {[%clk 0:02:55]} 4. d4 {[%clk 0:02:50]}  cxd4 {[%clk 0:02:53]} 5. Qxd4 {[%clk 0:02:44]}  Qf6 {[%clk 0:02:41]} 6. Qxf6 {[%clk 0:02:28]}  Nxf6 {[%clk 0:02:38]} 7. e5 {[%clk 0:02:28]}  Nd5 {[%clk 0:02:38]} 8. a3 {[%clk 0:02:25]}  b6 {[%clk 0:02:35]} 9. c4 {[%clk 0:02:23]}  Ne7 {[%clk 0:02:35]} 10. Nc3 {[%clk 0:02:22]}  a6 {[%clk 0:02:34]} 11. Ne4 {[%clk 0:02:19]}  Bg7 {[%clk 0:02:27]} 12. Nd6+ {[%clk 0:01:53]}  Kf8 {[%clk 0:02:27]} 13. Ng5 {[%clk 0:01:45]}  Nbc6 {[%clk 0:02:06]} 14. Ngxf7 {[%clk 0:01:41]}  Bxe5 {[%clk 0:01:52]} 15. Bh6+ {[%clk 0:01:31]}  Kg8 {[%clk 0:01:49]} 16. O-O-O {[%clk 0:01:24]}  Bxd6 {[%clk 0:01:34]} 17. Nxd6 {[%clk 0:01:24]}  Nf5 {[%clk 0:01:34]} 18. Be3 {[%clk 0:01:10]}  Nxd6 {[%clk 0:01:26]} 19. Rxd6 {[%clk 0:01:11]}  Kf7 {[%clk 0:01:26]} 20. Bxb6 {[%clk 0:01:09]}  Ke8 {[%clk 0:01:22]} 21. Bg2 {[%clk 0:01:08]}  Bb7 {[%clk 0:01:22]} 22. Rhd1 {[%clk 0:01:07]}  Rc8 {[%clk 0:00:56]} 23. Rxd7 {[%clk 0:01:02]}  Ba8 {[%clk 0:00:55]} 24. c5 {[%clk 0:00:59]}  Rf8 {[%clk 0:00:54]} 25. f4 {[%clk 0:00:57]}  e5 {[%clk 0:00:54]} 26. Rxh7 {[%clk 0:00:53]}  exf4 {[%clk 0:00:50]} 27. Re1+ {[%clk 0:00:51]} 1-0


[Site "https://www.chess.com"]